[Event "Early-Titled-Tuesday-Blitz-September-05-2023"]
[Site "Chess.com"]
[Date "2023.09.05"]
[Round "11"]
[White "CFalcons8"]
[Black "topin8"]
[Result "1-0"]
[WhiteElo "2303"]
[BlackElo "2440"]
[TimeControl "180+1"]
[EndTime "10:05:34 PDT"]
[Termination "CFalcons8 won on time"]

1. e4 {[%clk 0:03:00.9]} 1... c6 {[%clk 0:02:58.3]} 2. d4 {[%clk 0:02:57.8]}
2... d5 {[%clk 0:02:59.2]} 3. exd5 {[%clk 0:02:57.2]} 3... cxd5 {[%clk
0:03:00.1]} 4. Bd3 {[%clk 0:02:55.9]} 4... Nc6 {[%clk 0:02:59.4]} 5. c3 {[%clk
0:02:55.5]} 5... Qc7 {[%clk 0:03:00.3]} 6. Ne2 {[%clk 0:02:50.8]} 6... Nf6
{[%clk 0:02:56.1]} 7. Bf4 {[%clk 0:02:49.8]} 7... Qb6 {[%clk 0:02:36.3]} 8. Qc2
{[%clk 0:02:41.5]} 8... Bg4 {[%clk 0:02:33]} 9. f3 {[%clk 0:02:40.2]} 9... Bh5
{[%clk 0:02:33.1]} 10. Nd2 {[%clk 0:02:37.4]} 10... e6 {[%clk 0:02:32.2]} 11. b4
{[%clk 0:02:33.5]} 11... Rc8 {[%clk 0:02:29.2]} 12. Qb2 {[%clk 0:02:21.8]} 12...
Bg6 {[%clk 0:02:27.4]} 13. Bxg6 {[%clk 0:02:12.2]} 13... hxg6 {[%clk 0:02:28.3]}
14. Nb3 {[%clk 0:02:07.4]} 14... a5 {[%clk 0:02:24.1]} 15. a3 {[%clk 0:01:56.5]}
15... Nh5 {[%clk 0:02:15.3]} 16. Be3 {[%clk 0:01:34.8]} 16... Bd6 {[%clk
0:02:11.5]} 17. Nd2 {[%clk 0:01:20.2]} 17... Ke7 {[%clk 0:01:31]} 18. Kf2 {[%clk
0:01:06.2]} 18... f5 {[%clk 0:01:21.8]} 19. Bg5+ {[%clk 0:00:52.9]} 19... Kf7
{[%clk 0:01:18]} 20. g3 {[%clk 0:00:20.5]} 20... Ne5 {[%clk 0:01:16]} 21. Kg2
{[%clk 0:00:14.1]} 21... Qb5 {[%clk 0:01:04.6]} 22. Nf1 {[%clk 0:00:04.7]} 22...
Nc4 {[%clk 0:00:51.8]} 23. Qc2 {[%clk 0:00:02.3]} 23... Nb6 {[%clk 0:00:38.9]}
24. Ne3 {[%clk 0:00:02.2]} 24... Rc7 {[%clk 0:00:29.2]} 25. bxa5 {[%clk
0:00:02]} 25... Qxa5 {[%clk 0:00:28.9]} 26. Rab1 {[%clk 0:00:02.5]} 26... Rhc8
{[%clk 0:00:25.9]} 27. Rb3 {[%clk 0:00:03.1]} 27... Na4 {[%clk 0:00:22.1]} 28.
Rhb1 {[%clk 0:00:03.7]} 28... b6 {[%clk 0:00:17.4]} 29. Rb5 {[%clk 0:00:02.3]}
29... Qa6 {[%clk 0:00:17.2]} 30. c4 {[%clk 0:00:02.1]} 30... dxc4 {[%clk
0:00:16.4]} 31. d5 {[%clk 0:00:01.9]} 31... Nc5 {[%clk 0:00:03.6]} 32. dxe6+
{[%clk 0:00:01.9]} 1-0

[Event "Early-Titled-Tuesday-Blitz-September-05-2023"]
[Site "Chess.com"]
[Date "2023.09.05"]
[Round "11"]
[White "venturov"]
[Black "DopplerCharlotteDeWitte"]
[Result "0-1"]
[WhiteElo "2445"]
[BlackElo "2704"]
[TimeControl "180+1"]
[EndTime "10:05:39 PDT"]
[Termination "DopplerCharlotteDeWitte won by resignation"]

1. Nf3 {[%clk 0:03:00.9]} 1... d5 {[%clk 0:02:59.7]} 2. e3 {[%clk 0:03:01]} 2...
Nf6 {[%clk 0:02:57.9]} 3. c4 {[%clk 0:03:01.2]} 3... e6 {[%clk 0:02:57.1]} 4. b3
{[%clk 0:03:00.9]} 4... Bd6 {[%clk 0:02:54.4]} 5. Bb2 {[%clk 0:02:56.9]} 5...
O-O {[%clk 0:02:54.2]} 6. Nc3 {[%clk 0:02:47.7]} 6... a6 {[%clk 0:02:54.2]} 7.
cxd5 {[%clk 0:02:43.1]} 7... exd5 {[%clk 0:02:53.6]} 8. d4 {[%clk 0:02:42.1]}
8... Bf5 {[%clk 0:02:50.4]} 9. Bd3 {[%clk 0:02:34.8]} 9... Bxd3 {[%clk
0:02:47.9]} 10. Qxd3 {[%clk 0:02:35.7]} 10... Nbd7 {[%clk 0:02:43.8]} 11. O-O
{[%clk 0:02:29.7]} 11... Re8 {[%clk 0:02:42.1]} 12. Qf5 {[%clk 0:02:28.6]} 12...
c6 {[%clk 0:02:40.1]} 13. Ne2 {[%clk 0:02:02.7]} 13... Ne4 {[%clk 0:02:32.2]}
14. Ng3 {[%clk 0:01:55]} 14... Nxg3 {[%clk 0:02:20.7]} 15. fxg3 {[%clk
0:01:45.6]} 15... Nf6 {[%clk 0:02:09.9]} 16. Ne5 {[%clk 0:01:39.5]} 16... Qc8
{[%clk 0:02:05.4]} 17. Qg5 {[%clk 0:01:28.2]} 17... h6 {[%clk 0:02:02.6]} 18.
Qh4 {[%clk 0:01:21.4]} 18... Qe6 {[%clk 0:01:51.6]} 19. Rf4 {[%clk 0:01:09.6]}
19... Bxe5 {[%clk 0:01:38]} 20. dxe5 {[%clk 0:01:08.7]} 20... Ne4 {[%clk
0:01:38.5]} 21. Qh5 {[%clk 0:00:55.5]} 21... g5 {[%clk 0:01:22.6]} 22. Rf6
{[%clk 0:00:41]} 22... Nxf6 {[%clk 0:01:22.3]} 23. exf6 {[%clk 0:00:41.9]} 23...
Qxe3+ {[%clk 0:01:22.2]} 24. Kf1 {[%clk 0:00:39.7]} 24... Qd3+ {[%clk
0:01:18.5]} 25. Kg1 {[%clk 0:00:35.7]} 25... Qg6 {[%clk 0:01:18.1]} 26. Qg4
{[%clk 0:00:24.5]} 26... Re4 {[%clk 0:01:14.9]} 27. Qf3 {[%clk 0:00:18.8]} 27...
Rae8 {[%clk 0:01:14]} 28. Rf1 {[%clk 0:00:19.4]} 28... Re1 {[%clk 0:01:05.3]}
29. Bc3 {[%clk 0:00:15.2]} 29... Rxf1+ {[%clk 0:01:04.8]} 30. Qxf1 {[%clk
0:00:16.1]} 30... Qc2 {[%clk 0:01:03.4]} 31. Qf3 {[%clk 0:00:10.6]} 31... Re2
{[%clk 0:00:56]} 32. h4 {[%clk 0:00:10.7]} 32... Qc1+ {[%clk 0:00:49.2]} 33. Kh2
{[%clk 0:00:10]} 33... Re3 {[%clk 0:00:45.3]} 34. Qf5 {[%clk 0:00:05.2]} 34...
Re6 {[%clk 0:00:38.8]} 35. hxg5 {[%clk 0:00:03.3]} 35... Qxg5 {[%clk 0:00:39.7]}
36. Qf3 {[%clk 0:00:02.3]} 36... h5 {[%clk 0:00:34.7]} 37. Bd4 {[%clk
0:00:02.3]} 37... Qg4 {[%clk 0:00:32.2]} 38. Qf4 {[%clk 0:00:01.5]} 38... Qxf4
{[%clk 0:00:30.8]} 39. gxf4 {[%clk 0:00:02.4]} 39... Kh7 {[%clk 0:00:30.4]} 40.
Be5 {[%clk 0:00:03]} 40... Kg6 {[%clk 0:00:29.8]} 41. Kg3 {[%clk 0:00:03.3]}
41... Kf5 {[%clk 0:00:27.3]} 42. Kh4 {[%clk 0:00:03.6]} 42... Rxe5 {[%clk
0:00:26.3]} 43. fxe5 {[%clk 0:00:04.1]} 43... Kxe5 {[%clk 0:00:27.2]} 44. Kxh5
{[%clk 0:00:03.6]} 44... Kxf6 {[%clk 0:00:27.8]} 45. Kg4 {[%clk 0:00:02.2]}
45... Ke5 {[%clk 0:00:26.6]} 46. Kg5 {[%clk 0:00:02.8]} 46... d4 {[%clk
0:00:26.7]} 0-1

[Event "Early-Titled-Tuesday-Blitz-September-05-2023"]
[Site "Chess.com"]
[Date "2023.09.05"]
[Round "11"]
[White "Gareth-Bale11"]
[Black "thedjoker98"]
[Result "1-0"]
[WhiteElo "2777"]
[BlackElo "2622"]
[TimeControl "180+1"]
[EndTime "10:05:40 PDT"]
[Termination "Gareth-Bale11 won by resignation"]

1. d4 {[%clk 0:03:00.9]} 1... d5 {[%clk 0:02:59.6]} 2. Nf3 {[%clk 0:02:53]} 2...
Nf6 {[%clk 0:02:41.1]} 3. c3 {[%clk 0:02:51.4]} 3... Bf5 {[%clk 0:02:36.2]} 4.
Qb3 {[%clk 0:02:49.6]} 4... Qc8 {[%clk 0:02:35.7]} 5. c4 {[%clk 0:02:48.9]} 5...
e6 {[%clk 0:02:34]} 6. Nc3 {[%clk 0:02:48.2]} 6... c6 {[%clk 0:02:34]} 7. Bf4
{[%clk 0:02:46.6]} 7... Nbd7 {[%clk 0:02:32.9]} 8. e3 {[%clk 0:02:46.2]} 8...
Be7 {[%clk 0:02:30.9]} 9. Rc1 {[%clk 0:02:45.2]} 9... O-O {[%clk 0:02:29.9]} 10.
h3 {[%clk 0:02:45.5]} 10... h6 {[%clk 0:02:29.5]} 11. Be2 {[%clk 0:02:44.9]}
11... Ne4 {[%clk 0:02:28.3]} 12. cxd5 {[%clk 0:02:43.5]} 12... Nxc3 {[%clk
0:02:27]} 13. bxc3 {[%clk 0:02:40]} 13... exd5 {[%clk 0:02:26.4]} 14. a4 {[%clk
0:02:34.5]} 14... Nf6 {[%clk 0:02:01.6]} 15. O-O {[%clk 0:02:32.7]} 15... Rd8
{[%clk 0:02:01.6]} 16. c4 {[%clk 0:02:29.7]} 16... Bd6 {[%clk 0:01:52.6]} 17.
cxd5 {[%clk 0:02:21.1]} 17... Nxd5 {[%clk 0:01:46.1]} 18. Bxd6 {[%clk
0:02:13.1]} 18... Rxd6 {[%clk 0:01:47]} 19. Ne5 {[%clk 0:02:11.7]} 19... Qc7
{[%clk 0:01:26]} 20. Bf3 {[%clk 0:02:08.6]} 20... Nf6 {[%clk 0:01:17.7]} 21.
Rfe1 {[%clk 0:02:02.8]} 21... Rdd8 {[%clk 0:01:13.2]} 22. a5 {[%clk 0:01:57.1]}
22... a6 {[%clk 0:01:10.9]} 23. Re2 {[%clk 0:01:49]} 23... Be4 {[%clk
0:01:05.6]} 24. Rb2 {[%clk 0:01:42.4]} 24... Bxf3 {[%clk 0:01:03.7]} 25. Nxf3
{[%clk 0:01:43.3]} 25... Qxa5 {[%clk 0:00:57.1]} 26. Qxb7 {[%clk 0:01:41.2]}
26... Rac8 {[%clk 0:00:54.4]} 27. Ne5 {[%clk 0:01:30.4]} 27... Rc7 {[%clk
0:00:53.5]} 28. Qb6 {[%clk 0:01:29.3]} 28... Qxb6 {[%clk 0:00:47.2]} 29. Rxb6
{[%clk 0:01:30.2]} 29... Rdc8 {[%clk 0:00:43.9]} 30. Rcxc6 {[%clk 0:00:54]}
30... Rxc6 {[%clk 0:00:43.7]} 31. Nxc6 {[%clk 0:00:53.5]} 31... Ra8 {[%clk
0:00:40.3]} 32. Na5 {[%clk 0:00:52]} 32... Kf8 {[%clk 0:00:36.8]} 33. g4 {[%clk
0:00:47.4]} 33... Nd5 {[%clk 0:00:36.6]} 34. Rd6 {[%clk 0:00:46.7]} 34... Nf6
{[%clk 0:00:31.4]} 35. f3 {[%clk 0:00:44.9]} 35... Ke7 {[%clk 0:00:29]} 36. Rc6
{[%clk 0:00:43.9]} 36... Kd7 {[%clk 0:00:27.2]} 37. e4 {[%clk 0:00:42.3]} 37...
h5 {[%clk 0:00:23]} 38. Kf2 {[%clk 0:00:41]} 38... hxg4 {[%clk 0:00:22.9]} 39.
hxg4 {[%clk 0:00:41.9]} 39... Ne8 {[%clk 0:00:18.5]} 40. Ke3 {[%clk 0:00:41.4]}
40... Nc7 {[%clk 0:00:18.8]} 41. d5 {[%clk 0:00:40.5]} 41... Rb8 {[%clk
0:00:19.2]} 42. Nc4 {[%clk 0:00:40.8]} 42... Rb3+ {[%clk 0:00:18.5]} 43. Kd4
{[%clk 0:00:40.6]} 43... f6 {[%clk 0:00:16.5]} 44. f4 {[%clk 0:00:27]} 44...
Nb5+ {[%clk 0:00:10.2]} 45. Kc5 {[%clk 0:00:26.6]} 45... Rc3 {[%clk 0:00:10.7]}
46. Rxa6 {[%clk 0:00:22.9]} 1-0

[Event "Early-Titled-Tuesday-Blitz-September-05-2023"]
[Site "Chess.com"]
[Date "2023.09.05"]
[Round "11"]
[White "wannabe2700"]
[Black "Flaccidmoves"]
[Result "1-0"]
[WhiteElo "2619"]
[BlackElo "2483"]
[TimeControl "180+1"]
[EndTime "10:05:41 PDT"]
[Termination "wannabe2700 won on time"]

1. b3 {[%clk 0:03:00.9]} 1... e5 {[%clk 0:02:59.2]} 2. Bb2 {[%clk 0:03:01.8]}
2... Nc6 {[%clk 0:02:59.5]} 3. e3 {[%clk 0:03:02.2]} 3... Nf6 {[%clk 0:02:59.9]}
4. Nf3 {[%clk 0:03:02.4]} 4... e4 {[%clk 0:02:59.9]} 5. Nd4 {[%clk 0:03:03]}
5... Nxd4 {[%clk 0:02:54.3]} 6. Bxd4 {[%clk 0:03:03.9]} 6... d5 {[%clk
0:02:51.3]} 7. c4 {[%clk 0:03:03.1]} 7... c5 {[%clk 0:02:49.1]} 8. Bxf6 {[%clk
0:03:03]} 8... Qxf6 {[%clk 0:02:48.8]} 9. Nc3 {[%clk 0:03:03.9]} 9... d4 {[%clk
0:02:45.6]} 10. Nxe4 {[%clk 0:03:00.9]} 10... Qg6 {[%clk 0:02:46]} 11. Ng3
{[%clk 0:02:55.2]} 11... h5 {[%clk 0:02:44.8]} 12. Qf3 {[%clk 0:02:53.2]} 12...
Be7 {[%clk 0:02:22.8]} 13. h3 {[%clk 0:02:45.9]} 13... h4 {[%clk 0:02:21.9]} 14.
Ne2 {[%clk 0:02:46]} 14... O-O {[%clk 0:02:15.4]} 15. Nf4 {[%clk 0:02:45.3]}
15... Qh6 {[%clk 0:02:08.8]} 16. Bd3 {[%clk 0:02:43.4]} 16... Bd7 {[%clk
0:01:57.8]} 17. Qxb7 {[%clk 0:02:42.3]} 17... Rad8 {[%clk 0:01:57.1]} 18. O-O
{[%clk 0:02:38.6]} 18... Bd6 {[%clk 0:01:50.3]} 19. Nd5 {[%clk 0:02:28.6]} 19...
Bc6 {[%clk 0:01:34.9]} 20. Ne7+ {[%clk 0:01:08.3]} 20... Bxe7 {[%clk 0:01:34.2]}
21. Qxe7 {[%clk 0:01:09.2]} 21... dxe3 {[%clk 0:01:25.9]} 22. Be2 {[%clk
0:00:35.7]} 22... Rxd2 {[%clk 0:01:07.5]} 23. Rae1 {[%clk 0:00:34.9]} 23... Qg6
{[%clk 0:01:02.3]} 24. f3 {[%clk 0:00:25.4]} 24... Re8 {[%clk 0:00:50.8]} 25.
Qxc5 {[%clk 0:00:25.5]} 25... Rxa2 {[%clk 0:00:45.6]} 26. b4 {[%clk 0:00:17.7]}
26... Ba8 {[%clk 0:00:37.8]} 27. b5 {[%clk 0:00:17.7]} 27... Qg3 {[%clk
0:00:31.3]} 28. Qd4 {[%clk 0:00:15.1]} 28... Rd2 {[%clk 0:00:19.9]} 29. Qg4
{[%clk 0:00:14.6]} 29... Rc2 {[%clk 0:00:09]} 30. Qxg3 {[%clk 0:00:08.5]} 30...
hxg3 {[%clk 0:00:09.9]} 31. f4 {[%clk 0:00:09]} 31... Rd8 {[%clk 0:00:08.2]} 32.
Bf3 {[%clk 0:00:08.5]} 32... Bxf3 {[%clk 0:00:08.1]} 33. Rxf3 {[%clk 0:00:09.4]}
33... e2 {[%clk 0:00:06.8]} 34. Rxg3 {[%clk 0:00:08.3]} 34... Rd4 {[%clk
0:00:03.5]} 35. c5 {[%clk 0:00:07.2]} 35... Rxf4 {[%clk 0:00:03.4]} 36. c6
{[%clk 0:00:06.7]} 36... Rd2 {[%clk 0:00:02.1]} 37. Rc3 {[%clk 0:00:04.4]} 37...
Rd1 {[%clk 0:00:02.2]} 38. Rc1 {[%clk 0:00:04.7]} 1-0

[Event "Early-Titled-Tuesday-Blitz-September-05-2023"]
[Site "Chess.com"]
[Date "2023.09.05"]
[Round "11"]
[White "MathiasWomacka"]
[Black "stepanosinovsky"]
[Result "0-1"]
[WhiteElo "2468"]
[BlackElo "2330"]
[TimeControl "180+1"]
[EndTime "10:05:45 PDT"]
[Termination "stepanosinovsky won by resignation"]

1. e4 {[%clk 0:03:00.9]} 1... e5 {[%clk 0:02:59.4]} 2. Nf3 {[%clk 0:03:00.5]}
2... Nc6 {[%clk 0:02:59.8]} 3. Bb5 {[%clk 0:03:00.7]} 3... a6 {[%clk 0:03:00.1]}
4. Bxc6 {[%clk 0:03:01.2]} 4... dxc6 {[%clk 0:03:01]} 5. O-O {[%clk 0:03:00.5]}
5... Bg4 {[%clk 0:02:58.8]} 6. h3 {[%clk 0:02:59.6]} 6... h5 {[%clk 0:02:59.2]}
7. d3 {[%clk 0:02:59.3]} 7... Qf6 {[%clk 0:02:57]} 8. Nbd2 {[%clk 0:02:59.8]}
8... Bd6 {[%clk 0:02:56.8]} 9. Re1 {[%clk 0:03:00.1]} 9... Ne7 {[%clk
0:02:55.2]} 10. d4 {[%clk 0:02:59.7]} 10... Ng6 {[%clk 0:02:51.3]} 11. hxg4
{[%clk 0:02:59.3]} 11... hxg4 {[%clk 0:02:50.5]} 12. Nh2 {[%clk 0:02:59.7]}
12... Rxh2 {[%clk 0:02:49.2]} 13. Qxg4 {[%clk 0:03:00.1]} 13... Rh4 {[%clk
0:02:45]} 14. Qf5 {[%clk 0:02:59.4]} 14... exd4 {[%clk 0:02:28.6]} 15. Nf3
{[%clk 0:02:53.7]} 15... Rh7 {[%clk 0:01:54.9]} 16. Bg5 {[%clk 0:02:44.7]} 16...
Qxf5 {[%clk 0:01:54.4]} 17. exf5+ {[%clk 0:02:43.8]} 17... Ne7 {[%clk
0:01:54.8]} 18. f6 {[%clk 0:02:26.2]} 18... gxf6 {[%clk 0:01:54.4]} 19. Bxf6
{[%clk 0:02:27.1]} 19... c5 {[%clk 0:01:38.1]} 20. Ng5 {[%clk 0:02:16.2]} 20...
Rh6 {[%clk 0:01:33.7]} 21. Ne4 {[%clk 0:02:15.7]} 21... Kd7 {[%clk 0:00:56.3]}
22. g3 {[%clk 0:01:49.8]} 22... Nd5 {[%clk 0:00:50.6]} 23. Bg5 {[%clk
0:01:47.3]} 23... Rg6 {[%clk 0:00:49.7]} 24. Bd2 {[%clk 0:01:44.1]} 24... f5
{[%clk 0:00:43.9]} 25. Nxd6 {[%clk 0:01:41.3]} 25... cxd6 {[%clk 0:00:44.8]} 26.
Kg2 {[%clk 0:01:41.6]} 26... b5 {[%clk 0:00:43.1]} 27. a4 {[%clk 0:01:37.5]}
27... b4 {[%clk 0:00:22.1]} 28. Rh1 {[%clk 0:01:36.5]} 28... f4 {[%clk
0:00:18.3]} 29. Rh7+ {[%clk 0:01:34.3]} 29... Kc6 {[%clk 0:00:18.6]} 30. Rah1
{[%clk 0:01:26.1]} 30... fxg3 {[%clk 0:00:17.9]} 31. fxg3 {[%clk 0:01:26.8]}
31... Rag8 {[%clk 0:00:17.9]} 32. R1h3 {[%clk 0:01:26.4]} 32... Re8 {[%clk
0:00:18.3]} 33. Kf3 {[%clk 0:01:16.3]} 33... Rge6 {[%clk 0:00:17.2]} 34. Bf4
{[%clk 0:01:17]} 34... Nxf4 {[%clk 0:00:13.8]} 35. gxf4 {[%clk 0:01:10.3]} 35...
Re2 {[%clk 0:00:14]} 36. Ra7 {[%clk 0:01:05.4]} 36... R8e3+ {[%clk 0:00:11.2]}
37. Kg4 {[%clk 0:01:05.5]} 37... Rg2+ {[%clk 0:00:11.3]} 38. Kh4 {[%clk
0:01:05.3]} 38... Rxc2 {[%clk 0:00:11.3]} 39. Rxa6+ {[%clk 0:01:03.9]} 39... Kd5
{[%clk 0:00:11.4]} 40. f5 {[%clk 0:00:58.4]} 40... Rxh3+ {[%clk 0:00:10.6]} 41.
Kxh3 {[%clk 0:00:58.3]} 41... d3 {[%clk 0:00:11.5]} 42. f6 {[%clk 0:00:51.5]}
42... Rf2 {[%clk 0:00:10.7]} 43. Kg3 {[%clk 0:00:18.9]} 43... Rxf6 {[%clk
0:00:10.7]} 0-1

[Event "Early-Titled-Tuesday-Blitz-September-05-2023"]
[Site "Chess.com"]
[Date "2023.09.05"]
[Round "11"]
[White "ferrufino64"]
[Black "noblerone"]
[Result "0-1"]
[WhiteElo "2184"]
[BlackElo "2528"]
[TimeControl "180+1"]
[EndTime "10:05:46 PDT"]
[Termination "noblerone won by checkmate"]

1. e4 {[%clk 0:02:53.1]} 1... d5 {[%clk 0:02:59]} 2. exd5 {[%clk 0:02:52]} 2...
Qxd5 {[%clk 0:02:59.9]} 3. Nc3 {[%clk 0:02:51.3]} 3... Qd8 {[%clk 0:02:59.6]} 4.
d4 {[%clk 0:02:50.4]} 4... Nf6 {[%clk 0:03:00]} 5. h3 {[%clk 0:02:47.7]} 5...
Bf5 {[%clk 0:02:59.6]} 6. Nf3 {[%clk 0:02:43.1]} 6... c6 {[%clk 0:02:54.5]} 7.
Bd3 {[%clk 0:02:39.6]} 7... Bxd3 {[%clk 0:02:54.3]} 8. Qxd3 {[%clk 0:02:39.2]}
8... e6 {[%clk 0:02:55.2]} 9. Bd2 {[%clk 0:02:33.1]} 9... Nbd7 {[%clk
0:02:51.8]} 10. O-O-O {[%clk 0:02:30.7]} 10... Be7 {[%clk 0:02:50]} 11. Rhe1
{[%clk 0:02:23.6]} 11... Nd5 {[%clk 0:02:43.3]} 12. Ne4 {[%clk 0:02:16.3]} 12...
h6 {[%clk 0:02:38.9]} 13. Kb1 {[%clk 0:02:10.5]} 13... N7f6 {[%clk 0:02:36.4]}
14. Nxf6+ {[%clk 0:02:02.2]} 14... Bxf6 {[%clk 0:02:27.3]} 15. c4 {[%clk
0:01:57.1]} 15... Ne7 {[%clk 0:02:22.3]} 16. Qe4 {[%clk 0:01:50]} 16... Qc7
{[%clk 0:02:03.2]} 17. Bf4 {[%clk 0:01:47.5]} 17... Qa5 {[%clk 0:01:58.8]} 18.
g4 {[%clk 0:01:44.4]} 18... O-O-O {[%clk 0:01:49.4]} 19. h4 {[%clk 0:01:37.2]}
19... g5 {[%clk 0:01:36.8]} 20. Bd2 {[%clk 0:01:34.2]} 20... Qa6 {[%clk
0:01:10.8]} 21. hxg5 {[%clk 0:01:08.5]} 21... hxg5 {[%clk 0:01:08.9]} 22. b3
{[%clk 0:01:08.8]} 22... Rhg8 {[%clk 0:01:00.9]} 23. Bb4 {[%clk 0:01:03.4]}
23... Qb6 {[%clk 0:00:53.8]} 24. Bc5 {[%clk 0:01:02.2]} 24... Qc7 {[%clk
0:00:53]} 25. Ne5 {[%clk 0:00:55.6]} 25... Ng6 {[%clk 0:00:45.6]} 26. Nxg6
{[%clk 0:00:16.2]} 26... Rxg6 {[%clk 0:00:44.8]} 27. Bb4 {[%clk 0:00:12.9]}
27... Rgg8 {[%clk 0:00:34.1]} 28. f3 {[%clk 0:00:12.8]} 28... Rge8 {[%clk
0:00:33.4]} 29. Bc3 {[%clk 0:00:12.4]} 29... Be7 {[%clk 0:00:26.4]} 30. Rd3
{[%clk 0:00:12.2]} 30... Bd6 {[%clk 0:00:25.8]} 31. Red1 {[%clk 0:00:12.1]}
31... Bf4 {[%clk 0:00:25.8]} 32. a4 {[%clk 0:00:08.6]} 32... Qb6 {[%clk
0:00:25.1]} 33. Ka2 {[%clk 0:00:08.3]} 33... Rh8 {[%clk 0:00:21.8]} 34. Qe1
{[%clk 0:00:08.4]} 34... Rh2+ {[%clk 0:00:21.7]} 35. Ka3 {[%clk 0:00:08.9]}
35... Qc7 {[%clk 0:00:17.7]} 36. Ba5 {[%clk 0:00:07.9]} 36... b6 {[%clk
0:00:17.9]} 37. Bc3 {[%clk 0:00:08.1]} 37... Bd6+ {[%clk 0:00:14.7]} 38. b4
{[%clk 0:00:08.2]} 38... a5 {[%clk 0:00:14.4]} 39. Kb3 {[%clk 0:00:07.6]} 39...
axb4 {[%clk 0:00:14.5]} 40. Bxb4 {[%clk 0:00:08.5]} 40... Bxb4 {[%clk
0:00:14.4]} 41. Qxb4 {[%clk 0:00:09.4]} 41... Rdh8 {[%clk 0:00:10.6]} 42. d5
{[%clk 0:00:08.2]} 42... cxd5 {[%clk 0:00:08.7]} 43. cxd5 {[%clk 0:00:08.7]}
43... Qc2+ {[%clk 0:00:08.8]} 44. Ka3 {[%clk 0:00:07.2]} 44... Qa2# {[%clk
0:00:09.4]} 0-1

[Event "Early-Titled-Tuesday-Blitz-September-05-2023"]
[Site "Chess.com"]
[Date "2023.09.05"]
[Round "11"]
[White "Mops_2004"]
[Black "lamomiajunior"]
[Result "1-0"]
[WhiteElo "2832"]
[BlackElo "2697"]
[TimeControl "180+1"]
[EndTime "10:05:49 PDT"]
[Termination "Mops_2004 won on time"]

1. g3 {[%clk 0:03:00.9]} 1... d5 {[%clk 0:02:59.1]} 2. Nf3 {[%clk 0:03:00.6]}
2... Nf6 {[%clk 0:02:59.1]} 3. Bg2 {[%clk 0:03:01]} 3... c6 {[%clk 0:02:59.2]}
4. O-O {[%clk 0:03:01.6]} 4... Bg4 {[%clk 0:02:59.1]} 5. h3 {[%clk 0:03:01.5]}
5... Bxf3 {[%clk 0:02:58.5]} 6. Bxf3 {[%clk 0:03:02.4]} 6... e6 {[%clk
0:02:54.4]} 7. d3 {[%clk 0:03:00.4]} 7... Nbd7 {[%clk 0:02:54.1]} 8. Bg2 {[%clk
0:03:00.3]} 8... Bd6 {[%clk 0:02:54]} 9. e4 {[%clk 0:02:59.6]} 9... O-O {[%clk
0:02:54.1]} 10. Qe2 {[%clk 0:02:59.8]} 10... a5 {[%clk 0:02:51.8]} 11. Nc3
{[%clk 0:02:56.1]} 11... Qc7 {[%clk 0:02:45.6]} 12. f4 {[%clk 0:02:48.9]} 12...
dxe4 {[%clk 0:02:35.5]} 13. dxe4 {[%clk 0:02:49.8]} 13... e5 {[%clk 0:02:36]}
14. f5 {[%clk 0:02:49.7]} 14... b5 {[%clk 0:02:35.1]} 15. g4 {[%clk 0:02:48.4]}
15... b4 {[%clk 0:02:34.6]} 16. Nd1 {[%clk 0:02:44.1]} 16... h6 {[%clk
0:02:25.8]} 17. h4 {[%clk 0:02:43.5]} 17... Qb6+ {[%clk 0:02:04.2]} 18. Kh1
{[%clk 0:02:41.9]} 18... Qb5 {[%clk 0:01:54.2]} 19. Qf3 {[%clk 0:02:20.1]} 19...
Nc5 {[%clk 0:01:51.2]} 20. Nf2 {[%clk 0:02:18.7]} 20... Qc4 {[%clk 0:01:27.5]}
21. g5 {[%clk 0:02:17.3]} 21... hxg5 {[%clk 0:01:21.1]} 22. hxg5 {[%clk
0:02:18.2]} 22... Nh7 {[%clk 0:01:20.7]} 23. Be3 {[%clk 0:02:09.9]} 23... Be7
{[%clk 0:00:50.8]} 24. f6 {[%clk 0:02:03.3]} 24... gxf6 {[%clk 0:00:51]} 25.
gxf6 {[%clk 0:02:04.2]} 25... Bxf6 {[%clk 0:00:51.7]} 26. Bh3 {[%clk 0:02:04.7]}
26... Ne6 {[%clk 0:00:29.7]} 27. Bf5 {[%clk 0:01:57.6]} 27... Nhg5 {[%clk
0:00:29.3]} 28. Qg3 {[%clk 0:01:01.8]} 28... Nf4 {[%clk 0:00:22.5]} 29. Ng4
{[%clk 0:00:41.3]} 29... Kg7 {[%clk 0:00:19.8]} 30. Bxf4 {[%clk 0:00:16.8]}
30... exf4 {[%clk 0:00:19.7]} 31. Qxf4 {[%clk 0:00:16.7]} 31... Rh8+ {[%clk
0:00:20.4]} 32. Kg2 {[%clk 0:00:16.6]} 32... Bd8 {[%clk 0:00:14.5]} 33. Rf2
{[%clk 0:00:14.4]} 33... f6 {[%clk 0:00:13]} 34. Rd1 {[%clk 0:00:12.4]} 34...
Ra7 {[%clk 0:00:12.5]} 35. Rd3 {[%clk 0:00:10.9]} 35... Bb6 {[%clk 0:00:12.7]}
36. Nxf6 {[%clk 0:00:08.5]} 36... Kxf6 {[%clk 0:00:04.9]} 37. Be6+ {[%clk
0:00:05.8]} 37... Kg7 {[%clk 0:00:01.5]} 38. Qf6+ {[%clk 0:00:05.7]} 38... Kh7
{[%clk 0:00:01.4]} 39. Bxc4 {[%clk 0:00:04.1]} 1-0